[Event "FRA-chT Top 12 2019"]
[Site "Brest"]
[Date "2019.05.27"]
[Round "10.1"]
[White "Donchenko, Alexander"]
[Black "Oleksiyenko, Mykhaylo"]
[Result "1/2-1/2"]
[ECO "A13"]
[WhiteElo "2595"]
[BlackElo "2595"]
[Annotator "ChessBase"]
[PlyCount "97"]
[EventDate "2019.05.18"]
[EventType "team-tourn"]
[EventCountry "FRA"]
[SourceTitle "playchess.com"]
[Source "ChessBase"]
[SourceQuality "1"]
[TimeControl "40/5400+30:1800+30"]

1. c4 {[%emt 0:00:00]} e6 {[%emt 0:00:00]} 2. g3 {[%emt 0:00:00]} Nf6 {[%emt 0:00:26]} 3. Bg2 {[%emt 0:00:00]} d5 {[%emt 0:00:09]} 4. Nf3 {[%emt 0:00:22]} d4 {[%emt 0:01:37]} 5. d3 {[%emt 0:00:13]} c5 {[%emt 0:04:12]} 6. e4 {[%emt 0:00:31]} Nc6 {[%emt 0:00:18]} 7. e5 {[%emt 0:00:09]} Nd7 {[%emt 0:00:18]} 8. Bf4 {[%emt 0:00:08]} Qc7 {[%emt 0:05:26]} 9. Nbd2 {[%emt 0:00:31]} Ne7 {[%emt 0:03:48]} 10. Ne4 {[%emt 0:08:02]} Ng6 {[%emt 0:00:33]} 11. Qd2 {[%emt 0:14:14]} Be7 {[%emt 0:01:43]} 12. O-O {[%emt 0:01:32]} O-O {[%emt 0:00:42]} 13. Rfe1 {[%emt 0:02:46]} a5 {[%emt 0:04:37]} 14. Bg5 {[%emt 0:07:03]} h6 {[%emt 0:26:45]} 15. Bf4 {[%emt 0:32:15]} Ra6 {[%emt 0:13:39]} 16. h4 {[%emt 0:00:38]} Nxf4 {[%emt 0:00:53]} 17. Qxf4 {[%emt 0:00:21]} f5 {[%emt 0:02:28]} 18. exf6 {[%emt 0:06:56]} Qxf4 {[%emt 0:00:05]} 19. gxf4 {[%emt 0:00:06]} Nxf6 {[%emt 0:05:50]} 20. Ne5 {[%emt 0:00:56]} Kh7 {[%emt 0:02:19]} 21. Ng3 {[%emt 0:03:05]} Bd6 {[%emt 0:01:51]} 22. Re2 {[%emt 0:01:50]} a4 {[%emt 0:02:39]} 23. Rae1 {[%emt 0:02:42]} Rb6 {[%emt 0:00:26]} 24. Bh3 {[%emt 0:03:24]} Ne8 {[%emt 0:04:56]} 25. h5 {[%emt 0:00:57]} Bxe5 {[%emt 0:05:12]} 26. fxe5 {[%emt 0:01:13]} Rc6 {[%emt 0:02:48]} 27. Rf1 {[%emt 0:01:21]} Rf4 {[%emt 0:01:39]} 28. Re4 {[%emt 0:00:39]} Rf3 {[%emt 0:00:26]} 29. Bg2 {[%emt 0:00:55]} Rf8 {[%emt 0:01:08]} 30. f4 {[%emt 0:00:26]} Rc7 {[%emt 0:00:24]} 31. Re2 {[%emt 0:01:01]} Kg8 {[%emt 0:02:13]} 32. Be4 {[%emt 0:01:19]} Bd7 {[%emt 0:01:33]} 33. Bg6 {[%emt 0:03:08]} Bc6 {[%emt 0:00:34]} 34. f5 {[%emt 0:02:22]} Re7 {[%emt 0:01:24]} 35. f6 {[%emt 0:01:02]} gxf6 {[%emt 0:01:06]} 36. exf6 {[%emt 0:00:02]} Rxf6 {[%emt 0:02:18]} 37. Rxf6 {[%emt 0:01:32]} Nxf6 {[%emt 0:00:02]} 38. Nf5 {[%emt 0:00:07]} Kf8 {[%emt 0:00:27]} 39. Nxe7 {[%emt 0:01:13]} Kxe7 {[%emt 0:00:03]} 40. Bf5 {[%emt 0:03:18]} Bd7 {[%emt 0:00:15]} 41. Be4 {[%emt 0:02:22]} b5 {[%emt 0:03:24]} 42. b3 {[%emt 0:04:53]} axb3 {[%emt 0:01:47]} 43. axb3 {[%emt 0:00:11]} bxc4 {[%emt 0:00:04]} 44. bxc4 {[%emt 0:00:11]} Nxh5 {[%emt 0:00:08]} 45. Rh2 {[%emt 0:02:06]} Nf6 {[%emt 0:00:35]} 46. Rxh6 {[%emt 0:00:44]} Nxe4 {[%emt 0:05:38]} 47. dxe4 {[%emt 0:00:53]} Ba4 {[%emt 0:00:11]} 48. Kf2 {[%emt 0:09:07]} Bb3 {[%emt 0:01:29]} 49. e5 {[%emt 0:02:56]} 1/2-1/2

[Event "FRA-chT Top 12 2019"]
[Site "Brest"]
[Date "2019.05.27"]
[Round "10.1"]
[White "Fedorov, Alexei"]
[Black "Nihal Sarin"]
[Result "1/2-1/2"]
[ECO "B23"]
[WhiteElo "2566"]
[BlackElo "2598"]
[Annotator "ChessBase"]
[PlyCount "42"]
[EventDate "2019.05.18"]
[EventType "team-tourn"]
[EventCountry "FRA"]
[SourceTitle "playchess.com"]
[Source "ChessBase"]
[SourceQuality "1"]
[TimeControl "40/5400+30:1800+30"]

1. e4 {[%emt 0:00:00]} c5 {[%emt 0:00:00]} 2. Ne2 {[%emt 0:01:42]} Nc6 {[%emt 0:01:18]} 3. Nbc3 {[%emt 0:00:30]} Nf6 {[%emt 0:01:55]} 4. g3 {[%emt 0:00:28]} d5 {[%emt 0:03:45]} 5. exd5 {[%emt 0:00:56]} Nxd5 {[%emt 0:00:09]} 6. Bg2 {[%emt 0:00:18]} Nxc3 {[%emt 0:00:47]} 7. Nxc3 {[%emt 0:01:14]} h5 {[%emt 0:24:53]} 8. d3 {[%emt 0:11:37]} Bg4 {[%emt 0:20:07]} 9. Bxc6+ {[%emt 0:03:28]} bxc6 {[%emt 0:03:12]} 10. f3 {[%emt 0:00:07]} Bf5 {[%emt 0:04:32]} 11. Be3 {[%emt 0:08:50]} Rb8 {[%emt 0:05:31]} 12. b3 {[%emt 0:01:46]} g6 {[%emt 0:02:34]} 13. Na4 {[%emt 0:15:26]} Bg7 {[%emt 0:01:04]} 14. Rc1 {[%emt 0:00:27]} Bd4 {[%emt 0:07:34]} 15. Qd2 {[%emt 0:05:47]} Qd5 {[%emt 0:00:42]} 16. Kf2 {[%emt 0:01:06]} O-O {[%emt 0:10:02]} 17. Rhe1 {[%emt 0:01:05]} Rfe8 {[%emt 0:00:40]} 18. Rcd1 {[%emt 0:03:32]} Rbd8 {[%emt 0:01:19]} 19. Qa5 {[%emt 0:04:42]} c4 {[%emt 0:04:00]} 20. Qxd5 {[%emt 0:04:40]} Bxe3+ {[%emt 0:00:01]} 21. Kxe3 {[%emt 0:13:19]} cxd5 {[%emt 0:00:06] Ke4} 1/2-1/2

[Event "FRA-chT Top 12 2019"]
[Site "Brest"]
[Date "2019.05.27"]
[Round "10.1"]
[White "Velten, Paul"]
[Black "Tabatabaei, M.amin"]
[Result "1/2-1/2"]
[ECO "D37"]
[WhiteElo "2507"]
[BlackElo "2610"]
[Annotator "RC"]
[PlyCount "268"]
[EventDate "2019.05.18"]
[EventType "team-tourn"]
[EventCountry "FRA"]
[SourceTitle "playchess.com"]
[Source "ChessBase"]
[SourceQuality "1"]
[TimeControl "40/5400+30:1800+30"]

1. d4 {[%emt 0:00:00]} Nf6 {[%emt 0:04:34]} 2. c4 {[%emt 0:00:00]} e6 {[%emt 0:00:13]} 3. Nf3 {[%emt 0:00:41]} d5 {[%emt 0:00:12]} 4. Nc3 {[%emt 0:00:28]} dxc4 {[%emt 0:00:08]} 5. e4 {[%emt 0:00:29]} b5 {[%emt 0:00:06]} 6. e5 {[%emt 0:05:55]} Nd5 {[%emt 0:00:29]} 7. Nxb5 {[%emt 0:03:11]} Nb6 {[%emt 0:00:08]} 8. Be2 {[%emt 0:02:32]} Be7 {[%emt 0:00:13]} 9. O-O {[%emt 0:02:04]} Nc6 {[%emt 0:00:07]} 10. Be3 {[%emt 0:10:09]} O-O {[%emt 0:00:54]} 11. a4 {[%emt 0:08:36]} Na5 {[%emt 0:15:15]} 12. Nd2 {[%emt 0:02:55]} Bb7 {[%emt 0:05:29]} 13. Qc2 {[%emt 0:08:12]} Qd7 {[%emt 0:03:54]} 14. Rfc1 {[%emt 0:04:09]} Rfc8 {[%emt 0:18:55]} 15. Rd1 {[%emt 0:12:06]} h6 {[%emt 0:04:28]} 16. Na3 {[%emt 0:07:43]} Bd5 {[%emt 0:15:44]} 17. Ndxc4 {[%emt 0:09:17]} Naxc4 {[%emt 0:02:54]} 18. Nxc4 {[%emt 0:00:14]} Qc6 {[%emt 0:01:02]} 19. Rdc1 {[%emt 0:00:39]} Nxc4 {[%emt 0:02:54]} 20. Bxc4 {[%emt 0:00:29]} Bxg2 {[%emt 0:00:06]} 21. Bf1 {[%emt 0:06:07]} Qxc2 {[%emt 0:00:10]} 22. Rxc2 {[%emt 0:00:03]} Be4 {[%emt 0:01:07]} 23. Rc3 {[%emt 0:00:44]} Rab8 {[%emt 0:09:32]} 24. Ba6 {[%emt 0:01:14]} Bb7 {[%emt 0:00:08]} 25. Bd3 {[%emt 0:00:29]} Bb4 {[%emt 0:01:42]} 26. Rc2 {[%emt 0:00:42]} Ba5 {[%emt 0:00:26]} 27. Rac1 {[%emt 0:08:46]} Rd8 {[%emt 0:00:11]} 28. b4 {[%emt 0:00:59]} Bxb4 {[%emt 0:00:41]} 29. Rxc7 {[%emt 0:01:23]} Ba5 {[%emt 0:00:05]} 30. R7c2 {[%emt 0:00:21]} Bb6 {[%emt 0:02:19]} 31. Rb2 {[%emt 0:00:10]} Bf3 {[%emt 0:02:48]} 32. h3 {[%emt 0:00:40]} f6 {[%emt 0:00:19]} 33. exf6 {[%emt 0:00:19]} gxf6 {[%emt 0:00:01]} 34. a5 {[%emt 0:02:22]} Bxa5 {[%emt 0:00:37]} 35. Rxb8 {[%emt 0:00:05]} Rxb8 {[%emt 0:00:01]} 36. d5 {[%emt 0:01:17]} Bxd5 {[%emt 0:02:30]} 37. Bxa7 {[%emt 0:00:05]} Rb3 {[%emt 0:00:37]} 38. Bf1 {[%emt 0:00:11]} Rb7 {[%emt 0:03:35]} 39. Rc8+ {[%emt 0:00:38]} Kg7 {[%emt 0:00:28]} 40. Be3 {[%emt 0:00:39]} Rb1 {[%emt 0:00:29]} 41. Rc1 {[%emt 0:31:46]} Rxc1 {[%emt 0:33:25]} 42. Bxc1 {[%emt 0:00:12]} Bb6 {[%emt 0:01:26]} 43. Bb5 {[%emt 0:00:00]} h5 {[%emt 0:00:00]} 44. Kf1 {[%emt 0:00:00]} h4 {[%emt 0:00:00]} 45. Bd3 {[%emt 0:00:00]} Bd4 {[%emt 0:00:00]} 46. Ba3 {[%emt 0:00:00]} Be5 {[%emt 0:00:00]} 47. Bc1 {[%emt 0:00:00]} Bd6 {[%emt 0:00:00]} 48. Be3 {[%emt 0:00:00]} Bf3 {[%emt 0:00:00]} 49. Be2 {[%emt 0:00:00]} Be4 {[%emt 0:00:00]} 50. f3 {[%emt 0:00:00]} Bf5 {[%emt 0:00:00]} 51. Kg2 {[%emt 0:00:00]} Bg3 {[%emt 0:00:00]} 52. Bb5 {[%emt 0:00:00]} e5 {[%emt 0:00:00]} 53. Bc6 {[%emt 0:00:00]} Be6 {[%emt 0:00:00]} 54. Bd2 {[%emt 0:00:00]} Kg6 {[%emt 0:00:00]} 55. Be8+ {[%emt 0:00:00]} Kf5 {[%emt 0:00:00]} 56. Bc6 {[%emt 0:00:00]} Bc8 {[%emt 0:00:21]} 57. Bd5 {[%emt 0:00:00]} Bd7 {[%emt 0:00:18]} 58. Be3 {[%emt 0:00:00]} Kg6 {[%emt 0:00:41]} 59. Bd2 {[%emt 0:00:00]} Bb5 {[%emt 0:00:27]} 60. Be3 {[%emt 0:00:00]} f5 {[%emt 0:00:52]} 61. Bd2 {[%emt 0:00:00]} Kf6 {[%emt 0:00:23]} 62. Ba5 {[%emt 0:00:00]} Ke7 {[%emt 0:00:17]} 63. Bb4+ {[%emt 0:00:00]} Kd7 {[%emt 0:00:08]} 64. Ba3 {[%emt 0:00:00]} Be1 {[%emt 0:01:12]} 65. Bf8 {[%emt 0:00:00]} Bd3 {[%emt 0:00:55]} 66. Ba3 {[%emt 0:00:00]} Ba5 {[%emt 0:00:48]} 67. Bc5 {[%emt 0:00:06]} Bc7 {[%emt 0:01:20]} 68. Bb4 {[%emt 0:00:22]} Bd8 {[%emt 0:00:42]} 69. Ba3 {[%emt 0:01:53]} Be7 {[%emt 0:04:30]} 70. Bb2 {[%emt 0:00:09]} Bd6 {[%emt 0:00:01]} 71. Bc3 {[%emt 0:00:10]} Bc7 {[%emt 0:00:41]} 72. Bb4 {[%emt 0:01:02]} Bc2 {[%emt 0:00:34]} 73. Kf1 {[%emt 0:01:31]} Ba4 {[%emt 0:01:20]} 74. Kg2 {[%emt 0:00:30]} Bb5 {[%emt 0:00:11]} 75. Bc5 {[%emt 0:01:36]} Bd6 {[%emt 0:00:16]} 76. Bf2 Be7 77. Be1 {[%emt 0:00:14]} Bf6 {[%emt 0:01:16]} 78. Bb4 {[%emt 0:01:12]} Ba6 {[%emt 0:00:33]} 79. Ba3 {[%emt 0:00:22]} Bd3 {[%emt 0:00:45]} 80. Bb4 {[%emt 0:00:20]} Bg5 {[%emt 0:00:06]} 81. Bc5 {[%emt 0:01:20]} Be7 {[%emt 0:00:29]} 82. Ba7 {[%emt 0:00:36]} Kd6 {[%emt 0:00:16]} 83. Bb7 {[%emt 0:01:12]} Bf6 {[%emt 0:01:04]} 84. Kf2 {[%emt 0:00:23]} Bb1 {[%emt 0:00:38]} 85. Bb6 {[%emt 0:01:59]} Bg5 {[%emt 0:00:20]} 86. Ba7 {[%emt 0:00:48]} Bf4 {[%emt 0:00:02]} 87. Kg2 {[%emt 0:00:15]} Bg3 {[%emt 0:00:56]} 88. Be3 {[%emt 0:00:32]} Bd3 {[%emt 0:00:08]} 89. Ba7 {[%emt 0:00:34]} Bc2 {[%emt 0:00:30]} 90. Be3 {[%emt 0:00:26]} Bb3 {[%emt 0:00:07]} 91. Bc8 {[%emt 0:00:43]} Bc2 {[%emt 0:00:56]} 92. Bb7 {[%emt 0:00:05]} Ke6 {[%emt 0:00:27]} 93. Bc5 {[%emt 0:01:05]} Ba4 {[%emt 0:00:24]} 94. Bb4 {[%emt 0:00:37]} Bd7 {[%emt 0:00:07]} 95. Bc5 {[%emt 0:01:05]} Be1 {[%emt 0:00:27]} 96. Ba3 {[%emt 0:00:35]} Ba5 {[%emt 0:01:17]} 97. Bc5 {[%emt 0:00:23]} Bd8 {[%emt 0:00:07]} 98. Bb4 {[%emt 0:00:32]} Bg5 {[%emt 0:01:14]} 99. Bc5 {[%emt 0:01:06]} Be7 {[%emt 0:00:26]} 100. Ba7 {[%emt 0:00:22]} f4 {[%emt 0:00:30]} 101. Be4 {[%emt 0:00:34]} Bb5 {[%emt 0:00:13]} 102. Bb6 {[%emt 0:00:31]} Kd6 {[%emt 0:00:12]} 103. Ba7 {[%emt 0:00:11]} Bd8 {[%emt 0:00:25]} 104. Bf2 {[%emt 0:00:15]} Bc4 {[%emt 0:00:33]} 105. Kg1 {[%emt 0:00:58]} Be7 {[%emt 0:00:50]} 106. Kg2 {[%emt 0:00:04]} Kc7 {[%emt 0:00:08]} 107. Kg1 {[%emt 0:00:10]} Be6 {[%emt 0:00:07]} 108. Kg2 {[%emt 0:00:01]} Bd7 {[%emt 0:00:00]} 109. Ba8 {[%emt 0:00:16]} Bf5 {[%emt 0:00:18]} 110. Bd5 {[%emt 0:00:31]} Kd6 {[%emt 0:00:02]} 111. Bb7 {[%emt 0:00:14]} Bd8 {[%emt 0:00:10]} 112. Ba8 {[%emt 0:00:07]} Ke6 {[%emt 0:00:10]} 113. Bc6 {[%emt 0:00:09]} Bc2 {[%emt 0:01:42]} 114. Bb7 {[%emt 0:01:38]} Be7 {[%emt 0:00:38]} 115. Bc6 {[%emt 0:00:16]} Kf5 {[%emt 0:00:12]} 116. Bd7+ {[%emt 0:00:06]} Kg5 {[%emt 0:00:09]} 117. Bc6 {[%emt 0:00:07]} Bg6 {[%emt 0:00:16]} 118. Bd5 {[%emt 0:00:16]} Bb4 {[%emt 0:00:02]} 119. Bb6 {[%emt 0:00:12]} Kf6 {[%emt 0:00:39]} 120. Bf2 {[%emt 0:00:14]} Kg5 {[%emt 0:00:01]} 121. Bb6 {[%emt 0:00:06]} Be7 {[%emt 0:00:24]} 122. Bf2 {[%emt 0:00:17]} Bc2 {[%emt 0:00:13]} 123. Bc6 {[%emt 0:00:12]} Bd8 {[%emt 0:00:13]} 124. Bb7 {[%emt 0:00:17]} Kg6 {[%emt 0:00:17]} 125. Be4+ {[%emt 0:02:40]} Bxe4 {[%emt 0:00:14]} 126. fxe4 {[%emt 0:00:04]} Kg5 {[%emt 0:03:29]} 127. Be1 {[%emt 0:00:26]} Bb6 {[%emt 0:00:50]} 128. Kf3 {[%emt 0:00:09]} Bd4 {[%emt 0:01:18]} 129. Ba5 {[%emt 0:00:07]} Kh5 {[%emt 0:00:10]} 130. Bd8 {[%emt 0:00:11]} Bb2 {[%emt 0:00:06]} 131. Bc7 {[%emt 0:00:55]} Bc3 {[%emt 0:00:09]} 132. Bd8 {[%emt 0:00:54]} Be1 {[%emt 0:00:10]} 133. Bc7 {[%emt 0:00:28]} Bc3 {[%emt 0:00:05]} 134. Bd8 {[%emt 0:00:05]} Be1 {[%emt 0:00:04]} 1/2-1/2

[Event "FRA-chT Top 12 2019"]
[Site "Brest"]
[Date "2019.05.27"]
[Round "10.1"]
[White "Villegas, Pierre"]
[Black "Lagarde, Maxime"]
[Result "0-1"]
[ECO "A58"]
[WhiteElo "2354"]
[BlackElo "2600"]
[Annotator "RC"]
[PlyCount "120"]
[EventDate "2019.05.18"]
[EventType "team-tourn"]
[EventCountry "FRA"]
[SourceTitle "playchess.com"]
[Source "ChessBase"]
[SourceQuality "1"]
[TimeControl "40/5400+30:1800+30"]

1. d4 {[%emt 0:00:00]} Nf6 {[%emt 0:00:00]} 2. c4 {[%emt 0:00:00]} c5 {[%emt 0:00:00]} 3. d5 {[%emt 0:00:00]} b5 {[%emt 0:00:00]} 4. cxb5 {[%emt 0:01:15]} a6 {[%emt 0:00:00]} 5. bxa6 {[%emt 0:00:07]} g6 {[%emt 0:00:06]} 6. Nc3 {[%emt 0:00:08]} Bg7 {[%emt 0:00:04]} 7. e4 {[%emt 0:00:44]} O-O {[%emt 0:00:04]} 8. Nf3 {[%emt 0:01:27]} d6 {[%emt 0:01:09]} 9. Be2 {[%emt 0:03:47]} Qa5 {[%emt 0:00:25]} 10. O-O {[%emt 0:01:56]} Bxa6 {[%emt 0:00:43]} 11. Re1 {[%emt 0:10:03]} Nbd7 {[%emt 0:05:52]} 12. h3 {[%emt 0:04:34]} Nb6 {[%emt 0:03:53]} 13. e5 {[%emt 0:19:57]} Nfd7 {[%emt 0:05:10]} 14. exd6 {[%emt 0:11:33]} exd6 {[%emt 0:00:35]} 15. Bf4 {[%emt 0:00:20]} Rfe8 {[%emt 0:00:54]} 16. Bxa6 Qxa6 {[%emt 0:01:36]} 17. Rxe8+ {[%emt 0:11:00]} Rxe8 {[%emt 0:00:04]} 18. Bxd6 {[%emt 0:00:17]} Nc4 {[%emt 0:00:10]} 19. Qd3 {[%emt 0:06:45]} Ra8 {[%emt 0:00:04]} 20. Bf4 {[%emt 0:06:05]} Nxb2 {[%emt 0:00:39]} 21. Qxa6 {[%emt 0:00:07]} Rxa6 {[%emt 0:00:04]} 22. Bd2 {[%emt 0:00:15]} Nc4 {[%emt 0:13:37]} 23. Rc1 {[%emt 0:03:09]} f5 {[%emt 0:13:36]} 24. Be1 {[%emt 0:02:52]} Nb2 {[%emt 0:03:46]} 25. Rc2 {[%emt 0:00:56]} Nd3 {[%emt 0:00:25]} 26. Ne2 {[%emt 0:03:26]} Rb6 {[%emt 0:16:42]} 27. Nc1 {[%emt 0:03:18]} Nf4 {[%emt 0:00:34]} 28. Bd2 {[%emt 0:02:29]} Nxd5 {[%emt 0:00:19]} 29. Nd3 {[%emt 0:00:07]} Rb1+ {[%emt 0:02:38]} 30. Kh2 {[%emt 0:01:46]} Bf8 {[%emt 0:00:48]} 31. g3 {[%emt 0:00:25]} Bd6 {[%emt 0:01:26]} 32. Kg2 {[%emt 0:00:50]} Rb7 {[%emt 0:01:02]} 33. Bc1 {[%emt 0:01:51]} Ra7 {[%emt 0:02:56]} 34. Nd2 {[%emt 0:00:51]} Ra4 {[%emt 0:00:36]} 35. Nc4 {[%emt 0:01:22]} Bf8 {[%emt 0:00:04]} 36. Kf3 {[%emt 0:01:53]} Bg7 {[%emt 0:01:49]} 37. a3 {[%emt 0:01:57]} Nc3 {[%emt 0:01:51]} 38. Ndb2 {[%emt 0:00:15]} Ra6 {[%emt 0:01:59]} 39. Nd3 {[%emt 0:00:35]} Nb5 {[%emt 0:02:23]} 40. Bb2 {[%emt 0:01:01]} Nd4+ {[%emt 0:02:02]} 41. Bxd4 {[%emt 0:03:12]} Bxd4 {[%emt 0:00:23]} 42. Ke2 {[%emt 0:05:33]} Kf7 {[%emt 0:03:31]} 43. h4 {[%emt 0:03:02]} h6 {[%emt 0:05:11]} 44. Ra2 {[%emt 0:04:19]} g5 {[%emt 0:07:38]} 45. hxg5 {[%emt 0:00:14]} hxg5 {[%emt 0:00:03]} 46. f4 {[%emt 0:07:36]} g4 {[%emt 0:03:54]} 47. Nde5+ {[%emt 0:01:27]} Nxe5 {[%emt 0:02:37]} 48. fxe5 {[%emt 0:00:16]} Rh6 {[%emt 0:00:22]} 49. Kf1 {[%emt 0:02:56]} Rh1+ {[%emt 0:01:28]} 50. Kg2 {[%emt 0:00:05]} Rg1+ {[%emt 0:00:06]} 51. Kh2 {[%emt 0:00:03]} Rc1 {[%emt 0:00:07]} 52. Nd6+ {[%emt 0:00:19]} Ke6 {[%emt 0:00:05]} 53. Nb5 {[%emt 0:00:09]} Bxe5 {[%emt 0:00:40]} 54. a4 {[%emt 0:00:07]} c4 {[%emt 0:03:09]} 55. a5 {[%emt 0:00:30]} c3 {[%emt 0:00:23]} 56. a6 {[%emt 0:00:50]} c2 {[%emt 0:00:18]} 57. a7 {[%emt 0:00:11]} Rh1+ {[%emt 0:00:06]} 58. Kxh1 {[%emt 0:00:05]} c1=Q+ {[%emt 0:00:03]} 59. Kh2 {[%emt 0:01:32]} Qh6+ {[%emt 0:00:13]} 60. Kg1 {[%emt 0:00:31]} Qe3+ {[%emt 0:00:08]} 0-1

[Event "FRA-chT Top 12 2019"]
[Site "Brest"]
[Date "2019.05.27"]
[Round "10.2"]
[White "Praggnanandhaa R"]
[Black "Chabanon, Jean-Luc"]
[Result "1/2-1/2"]
[ECO "A06"]
[WhiteElo "2536"]
[BlackElo "2437"]
[Annotator "ChessBase"]
[PlyCount "104"]
[EventDate "2019.05.18"]
[EventType "team-tourn"]
[EventCountry "FRA"]
[SourceTitle "playchess.com"]
[Source "ChessBase"]
[SourceQuality "1"]
[TimeControl "40/5400+30:1800+30"]

1. Nf3 {[%emt 0:00:00]} d5 {[%emt 0:02:39]} 2. g3 {[%emt 0:00:05]} c6 {[%emt 0:03:57]} 3. Bg2 {[%emt 0:00:26]} Bg4 {[%emt 0:00:19]} 4. h3 {[%emt 0:01:30]} Bh5 {[%emt 0:00:42]} 5. O-O {[%emt 0:00:14]} Nd7 {[%emt 0:00:52]} 6. d3 {[%emt 0:00:16]} e5 {[%emt 0:04:36]} 7. e4 {[%emt 0:01:39]} dxe4 {[%emt 0:01:45]} 8. dxe4 {[%emt 0:00:03]} Bc5 {[%emt 0:03:34]} 9. Qe1 {[%emt 0:05:08]} Ne7 {[%emt 0:11:55]} 10. Nbd2 {[%emt 0:17:50]} f6 {[%emt 0:02:37]} 11. a4 {[%emt 0:09:28]} Bf7 {[%emt 0:08:41]} 12. Qe2 {[%emt 0:04:56]} Qc7 {[%emt 0:18:07]} 13. Nc4 {[%emt 0:05:23]} Nb6 {[%emt 0:10:42]} 14. Ne3 {[%emt 0:03:27]} a5 {[%emt 0:03:53]} 15. b3 {[%emt 0:03:48]} O-O {[%emt 0:01:16]} 16. Bb2 {[%emt 0:02:26]} Rad8 {[%emt 0:01:24]} 17. Kh1 {[%emt 0:14:55]} Nbc8 {[%emt 0:01:27]} 18. Rad1 {[%emt 0:17:42]} Rxd1 {[%emt 0:00:25]} 19. Rxd1 {[%emt 0:00:21]} Rd8 {[%emt 0:00:15]} 20. Rxd8+ {[%emt 0:01:52]} Qxd8 {[%emt 0:00:07]} 21. Ne1 {[%emt 0:00:40]} Bd4 {[%emt 0:08:09]} 22. Qd2 {[%emt 0:04:02]} Bb6 {[%emt 0:02:50]} 23. Nd3 {[%emt 0:00:30]} Nd6 {[%emt 0:04:02]} 24. Ba3 {[%emt 0:01:01]} Ndc8 {[%emt 0:02:40]} 25. Qe2 {[%emt 0:02:21]} Bd4 {[%emt 0:00:53]} 26. f4 {[%emt 0:00:43]} b5 {[%emt 0:01:07]} 27. fxe5 {[%emt 0:01:25]} fxe5 {[%emt 0:00:11]} 28. Ng4 {[%emt 0:01:01]} b4 {[%emt 0:00:52]} 29. Bc1 {[%emt 0:00:20]} Qd6 {[%emt 0:02:16]} 30. Be3 {[%emt 0:00:38]} Ng6 {[%emt 0:00:39]} 31. h4 {[%emt 0:00:39]} h5 {[%emt 0:00:35]} 32. Nh2 {[%emt 0:00:27]} c5 {[%emt 0:01:17]} 33. Bxd4 {[%emt 0:00:32]} Qxd4 {[%emt 0:00:06]} 34. Nf3 {[%emt 0:00:32]} Qa1+ {[%emt 0:00:21]} 35. Kh2 {[%emt 0:00:14]} c4 {[%emt 0:00:09]} 36. bxc4 {[%emt 0:00:53]} Bxc4 {[%emt 0:00:38]} 37. Ng5 {[%emt 0:00:01]} Qxa4 {[%emt 0:01:53]} 38. Qxh5 {[%emt 0:00:39]} Nce7 {[%emt 0:00:13]} 39. Nc5 {[%emt 0:00:51]} Qc6 {[%emt 0:00:40]} 40. Bh3 {[%emt 0:00:29]} Nf8 {[%emt 0:00:43]} 41. Nce6 {[%emt 0:07:45]} Neg6 {[%emt 0:13:41]} 42. Bf5 {[%emt 0:10:12]} Qd6 {[%emt 0:12:27]} 43. Bxg6 {[%emt 0:10:48]} Qd2+ {[%emt 0:00:08]} 44. Kh1 {[%emt 0:00:26]} Qc1+ {[%emt 0:03:41]} 45. Kh2 {[%emt 0:00:12]} Qxc2+ {[%emt 0:00:40]} 46. Kh1 {[%emt 0:00:19]} Qc1+ {[%emt 0:00:36]} 47. Kh2 {[%emt 0:00:09]} Qc2+ {[%emt 0:00:42]} 48. Kh1 {[%emt 0:00:15]} Qc1+ {[%emt 0:00:06]} 49. Kh2 {[%emt 0:00:09]} Qd2+ {[%emt 0:00:07]} 50. Kh1 {[%emt 0:00:08]} Qe1+ {[%emt 0:00:25]} 51. Kh2 {[%emt 0:00:05]} Qf2+ {[%emt 0:01:29]} 52. Kh1 {[%emt 0:00:05]} Qe1+ {[%emt 0:00:49]} 1/2-1/2

[Event "FRA-chT Top 12 2019"]
[Site "Brest"]
[Date "2019.05.27"]
[Round "10.2"]
[White "Wirig, Anthony"]
[Black "Solodovnichenko, Yuri"]
[Result "1/2-1/2"]
[ECO "A30"]
[WhiteElo "2516"]
[BlackElo "2572"]
[Annotator "ChessBase"]
[PlyCount "45"]
[EventDate "2019.05.18"]
[EventType "team-tourn"]
[EventCountry "FRA"]
[SourceTitle "playchess.com"]
[Source "ChessBase"]
[SourceQuality "1"]
[TimeControl "40/5400+30:1800+30"]

1. Nf3 {[%emt 0:00:00]} Nf6 {[%emt 0:00:38]} 2. c4 {[%emt 0:00:20]} c5 {[%emt 0:00:15]} 3. Nc3 {[%emt 0:01:53]} e6 {[%emt 0:00:22]} 4. g3 {[%emt 0:03:55]} b6 {[%emt 0:00:23]} 5. Bg2 {[%emt 0:00:16]} Bb7 {[%emt 0:00:05]} 6. O-O {[%emt 0:00:25]} Be7 {[%emt 0:00:05]} 7. d4 {[%emt 0:13:37]} cxd4 {[%emt 0:00:15]} 8. Qxd4 {[%emt 0:00:02]} O-O {[%emt 0:00:08]} 9. Bf4 {[%emt 0:09:06]} Nc6 {[%emt 0:15:10]} 10. Qd1 {[%emt 0:06:43]} Na5 {[%emt 0:02:16]} 11. b3 {[%emt 0:01:26]} d5 {[%emt 0:02:58]} 12. cxd5 {[%emt 0:01:57]} Nxd5 {[%emt 0:04:06]} 13. Nxd5 {[%emt 0:02:43]} Qxd5 {[%emt 0:01:53]} 14. Rc1 {[%emt 0:10:56]} Rac8 {[%emt 0:04:10]} 15. Qxd5 {[%emt 0:11:22]} Bxd5 {[%emt 0:01:01]} 16. Rxc8 {[%emt 0:00:09]} Rxc8 {[%emt 0:00:05]} 17. Rc1 {[%emt 0:00:08]} Rxc1+ {[%emt 0:00:40]} 18. Bxc1 {[%emt 0:00:09]} Nc6 {[%emt 0:01:03]} 19. Ne1 {[%emt 0:05:45]} Nb4 {[%emt 0:05:04]} 20. Ba3 {[%emt 0:01:29]} Kf8 {[%emt 0:01:45]} 21. Bxb4 {[%emt 0:01:19]} Bxb4 {[%emt 0:00:05]} 22. Bxd5 {[%emt 0:01:16]} Bxe1 {[%emt 0:00:12]} 23. Bc4 {[%emt 0:00:09]} 1/2-1/2